Cogmind - Beta 13 @@@ ROGUE MODE // 2024.04.16 @ 20:32:21 Player: Olafz Result: Destroyed by D-53 Grenadier with Mini Grenade Launcher Performance ------------- Evolutions (0) 0 Regions Visited (2) 400 Robots Destroyed (6) 30 Value Destroyed (153) 153 Prototype IDs (0) 0 Alien Tech Used (0) 0 Bonus (0) 0 TOTAL SCORE: 583 Bonus ------- None Cogmind --------- Core Integrity 0/250 Matter 300/300 Energy 99/100 System Corruption 0% Temperature Cool (0) Movement Rolling (115) Ox1 Location -10/Mines Parts ------- > --- POWER (1) -------- (None) > --- PROPULSION (2) --- Compact Wheel > --- UTILITY (2) ------ Large Storage Unit > --- WEAPON (2) ------- Hammer > --- INVENTORY (15) --- Light Ion Engine Light Treads Light Treads Small Storage Unit EM Pulse Gun EM Pulse Gun Light Assault Rifle Plasma Flamer Peak State ------------ > --- POWER ------------ Ion Engine > --- PROPULSION ------- Aluminum Leg Aluminum Leg > --- UTILITY ---------- Small Storage Unit Large Storage Unit > --- WEAPON ----------- Particle Gun Hammer > --- INVENTORY -------- Light Ion Engine Light Treads Light Treads Wheel Compact Wheel EM Pulse Gun EM Pulse Gun Light Assault Rifle [Rating: 8] Favorites ----------- Power Ion Engine Engine Ion Engine Propulsion Aluminum Leg Leg Aluminum Leg Wheel Compact Wheel Utility Large Storage Unit Storage Large Storage Unit Weapon Particle Gun Energy Gun Particle Gun Ballistic Gun Light Assault Rifle Impact Weapon Hammer Build | -11 -10 -10 ------- Run | Yrd Mat Min Slots Evolved . | . . . Power . | . . . Propulsion . | . . . Utility . | . . . Weapon . | . . . Parts Attached 9 | . 7 2 Power 1 | . 1 . Engine 1 | . 1 . Core . | . . . Reactor . | . . . Propulsion 4 | . 2 2 Treads . | . . . Leg 2 | . 2 . Wheel 2 | . . 2 Hover . | . . . Flight . | . . . Utility 1 | . 1 . Device . | . . . Storage 1 | . 1 . Processor . | . . . Hackware . | . . . Protection . | . . . Artifact . | . . . Weapon 3 | . 3 . Energy Gun 1 | . 1 . Energy Cannon . | . . . Ballistic Gun 1 | . 1 . Ballistic Cannon . | . . . Launcher . | . . . Special Weapon . | . . . Impact Weapon 1 | . 1 . Slashing Weapon . | . . . Piercing Weapon . | . . . Special Melee Weapon . | . . . Unidentified Prototypes . | . . . Parts Lost 5 | . . 5 Power 1 | . . 1 Propulsion 3 | . . 3 Utility . | . . . Weapon 1 | . . 1 Highest Loss Streak 5 | . . 5 To Critical Strikes . | . . . Average Slot Usage (%) 83 | . 85 81 Engine 13 | . 14 12 Leg 27 | . 28 26 Storage 14 | . 14 14 Energy Gun 11 | . 10 13 Ballistic Gun 4 | . 9 . Impact Weapon 10 | . 7 14 Naked Turns . | . . . Heaviest Build 35 | 13 35 35 Greatest Support 20 | 20 20 20 Greatest Overweight (x) 2 | . 1 2 Average Overweight (x) . | . . 1 Largest Inventory Capacity 15 | 8 15 15 Average Capacity 11 | 8 8 15 Most Carried 10 | 6 8 10 Average Carried 8 | 6 7 9 Final Capacity 15 | 8 15 15 Final Carried 8 | 6 8 8 Class Distribution -------------------- 100% | Mutant Dominant Class ---------------- Mutant | -10/Materials Mutant | -10/Mines Resources | -11 -10 -10 ----------- Run | Yrd Mat Min Matter Collected 302 | 200 60 42 Remotely . | . . . Salvage Created 233 | . 233 . Parts 6 | . 6 . Haulers Intercepted . | . . . Recyclers Shooed . | . . . Parts Field Recycled . | . . . Retrieved Matter . | . . . Parts Self-Destructed . | . . . Prevented . | . . . Kills | -11 -10 -10 ------- Run | Yrd Mat Min Combat Hostiles Destroyed 3 | . 3 . Melee 1 | . 1 . Guns 2 | . 2 . Classes Destroyed 4 | . 4 . Recycler 1 | . 1 . Operator 1 | . 1 . Watcher 1 | . 1 . Grunt 3 | . 3 . Best Kill Streak 3 | . 3 . Combat Bots Only 1 | . 1 . Max Kills in Single Turn 1 | . 1 . Gunslinging . | . . . Exploded . | . . . Melee 1 | . 1 . Uniques/NPCs Destroyed . | . . . Combat | -11 -10 -10 -------- Run | Yrd Mat Min Hostile Shots Fired 39 | . 24 15 Missed 4 | . 4 . Damage Taken 805 | . 266 539 Core 255 | . 51 204 Absorbed by Shields . | . . . Core Remaining (%) 100 | 100 . . Volleys Fired 22 | . 18 4 Largest 2 | . 2 1 Hottest 65 | . 65 65 Shots Fired 33 | . 29 4 Gun 33 | . 29 4 Cannon . | . . . Launcher . | . . . Special . | . . . Kinetic 22 | . 22 . Thermal 11 | . 7 4 Explosive . | . . . Electromagnetic . | . . . Robot Hit Streak 4 | . 4 1 Robot Miss Streak 3 | . 3 3 Penetration Max . | . . . Secondary Targets 1 | . 1 . Max Gunslinging Chain 1 | . 1 . Shots Hit Robots 25 | . 24 1 Core Hits 8 | . 8 . Critical Kills . | . . . Critical Parts Destroyed 2 | . 2 . Critical Strikes 2 | . 2 . Smash 2 | . 2 . Melee Attacks 10 | . 10 . Impact 10 | . 10 . Slashing . | . . . Piercing . | . . . Sneak Attacks 3 | . 3 . Combat Hostiles . | . . . Follow-up Attacks . | . . . Damage Inflicted 406 | . 392 14 Guns 155 | . 141 14 Cannons . | . . . Explosions . | . . . Melee 251 | . 251 . Ramming . | . . . Kinetic 97 | . 97 . Thermal 58 | . 44 14 Explosive . | . . . Electromagnetic . | . . . Impact 251 | . 251 . Slashing . | . . . Piercing . | . . . Highest Corruption . | . . . Average Corruption . | . . . Corruption Purged . | . . . Corruption Blocked . | . . . Overload Shots . | . . . Overflow Damage 85 | . 85 . Projectiles . | . . . Explosions . | . . . Melee 85 | . 85 . Knockbacks 1 | . 1 . Impact 1 | . 1 . Kinetic . | . . . Secondary . | . . . Self-Inflicted Damage . | . . . Shots . | . . . Rammed . | . . . Targets Rammed . | . . . Kicked . | . . . Crushed . | . . . Highest Temperature 102 | . 102 71 Average Temperature 29 | . 26 42 Received Heat Transfer 153 | . 153 . Siege Activations . | . . . Robots Corrupted . | . . . Combat Hostiles . | . . . Parts Fried 3 | . 3 . Impact Corruptions 6 | . 6 . Robots Melted . | . . . Combat Hostiles . | . . . Parts Melted . | . . . Heat Transferred 148 | . 111 37 Parts Sabotaged . | . . . Parts Stolen . | . . . Parts Stripped . | . . . Power Chain Reactions . | . . . Alert | -11 -10 -10 ------- Run | Yrd Mat Min Peak Influence 147 | . 147 57 Initial 57 | . . 57 Average 60 | . 68 52 Maximum Alert Level . | . . . Low Security (%) 100 | 100 100 100 Level 1 . | . . . Level 2 . | . . . Level 3 . | . . . Level 4 . | . . . Level 5 . | . . . High Security . | . . . Max Security . | . . . Squads Dispatched 2 | . 1 1 Investigation . | . . . Extermination . | . . . Reinforcement 1 | . 1 . Assault 1 | . . 1 Garrison . | . . . Intercept . | . . . Searches Triggered . | . . . Construction Impeded . | . . . Haulers Reinforced . | . . . Active Scanning Responses . | . . . Cargo Convoy Interrupts . | . . . Stealth | -11 -10 -10 --------- Run | Yrd Mat Min Distress Signals 2 | . . 2 Communications Jammed . | . . . Distress Signals . | . . . Times Spotted 8 | . 6 2 Peak Tracking Total 3 | . 3 2 Tactical Retreats 1 | . 1 . Traps | -11 -10 -10 ------- Run | Yrd Mat Min Traps Triggered . | . . . Indirectly . | . . . Trap Hack Attempts . | . . . Triggered . | . . . Disarmed . | . . . Reprogrammed . | . . . Reused . | . . . Traps Extracted . | . . . Installed . | . . . Triggered . | . . . Machines | -11 -10 -10 ---------- Run | Yrd Mat Min Machines Disabled . | . . . Max in Single Turn . | . . . Machines Repaired . | . . . Machines Dismantled . | . . . Machines Sabotaged . | . . . Overloaded Fab Kills . | . . . Hacking | -11 -10 -10 --------- Run | Yrd Mat Min Machines Accessed 1 | . 1 . Terminals 1 | . 1 . Fabricators . | . . . Repair Stations . | . . . Recycling Units . | . . . Scanalyzers . | . . . Garrison Access . | . . . Total Hacks 2 | . 2 . Successful 2 | . 2 . Failed . | . . . Catastrophic . | . . . Database Lockouts . | . . . Manual 2 | . 2 . Terminals 2 | . 2 . Fabricators . | . . . Repair Stations . | . . . Recycling Units . | . . . Scanalyzers . | . . . Garrison Access . | . . . Terminal Hacks 1 | . 1 . Branch Access Points 1 | . 1 . Fabricator Hacks . | . . . Repair Station Hacks . | . . . Recycling Unit Hacks . | . . . Scanalyzer . | . . . Garrison Access Hacks . | . . . Unauthorized Hacks 1 | . 1 . Terminals 1 | . 1 . Botnet 1 | . 1 . Fabricators . | . . . Repair Stations . | . . . Recycling Units . | . . . Scanalyzers . | . . . Garrison Access . | . . . Data Cores Recovered . | . . . Used . | . . . Hacking Detections . | . . . Full Trace Events . | . . . Feedback Events . | . . . Feedback Blocked . | . . . Robot Schematics Acquired . | . . . Robots Built . | . . . Authchips . | . . . Time . | . . . Total Robot Build Rating . | . . . Part Schematics Acquired . | . . . Parts Built . | . . . Authchips . | . . . Time . | . . . Total Part Build Rating . | . . . Parts Repaired . | . . . Time . | . . . Parts Recycled . | . . . Recycled Matter . | . . . Retrieved Matter . | . . . Retrieved Components . | . . . Parts Scanalyzed . | . . . Part Schematics Acquired . | . . . Parts Damaged . | . . . Bothacking | -11 -10 -10 ------------ Run | Yrd Mat Min Used RIF Installer . | . . . Robots Hacked . | . . . Non-combat . | . . . Combat . | . . . Robot Hacks Applied . | . . . Relay Couplers Released . | . . . Fabnet Peak Effective % . | . . . Robots Rewired . | . . . Allies Hacked . | . . . Hacks Repelled . | . . . Allies | -11 -10 -10 -------- Run | Yrd Mat Min Total Allies 1 | . . 1 Largest Group 1 | . . 1 Highest-Rated Group 31 | . . 31 Highest-Rated Ally 31 | . . 31 Total Orders . | . . . Ally Attacks . | . . . Total Damage . | . . . Kills . | . . . Allies Corrupted . | . . . Allies Melted . | . . . Intel | -11 -10 -10 ------- Run | Yrd Mat Min Robot Analysis Total . | . . . Derelict Logs Recovered 1 | . . 1 Drone Launches . | . . . Drone Recoveries . | . . . Exploration | -11 -10 -10 ------------- Run | Yrd Mat Min Turns Passed 701 | 4 336 361 Spaces Moved 392 | 4 205 183 Core . | . . . Treads . | . . . Legs 374 | 4 205 165 Wheels 18 | . . 18 Hover . | . . . Flight . | . . . Fastest Speed 110 | 120 120 110 Average Speed 150 | 120 122 182 Slowest Speed 190 | 120 190 190 Overloaded Moves . | . . . Propulsion Burnouts . | . . . Robots Hopped . | . . . Cave-ins Triggered . | . . . Exploration Rate (%) 29 | 2 39 47 Regions Visited 2 Branch Regions 1 Pre-discovered Areas . | . . . Known Exits Taken 1 | . 1 . Unknown Exits Taken 1 | 1 . . Scrap Searched 1 | . . 1 Spaces Dug 2 | . 2 . Terrain Destroyed 2 | . 2 . Melee 2 | . 2 . Projectile . | . . . AOE . | . . . Terrain Rammed . | . . . Walls Destroyed . | . . . Machines Disabled . | . . . Actions | -11 -10 -10 --------- Run | Yrd Mat Min Total 459 | 3 249 207 Wait 20 | . 4 16 Move 390 | 3 204 183 Hop . | . . . Pick Up 1 | . . 1 Fast Attach 4 | . 4 . Attach 2 | . . 2 Detach 3 | . 2 1 Swap 3 | . 3 . Drop 4 | . 4 . Fire 22 | . 18 4 Melee 10 | . 10 . Ram . | . . . Kick . | . . . Crush . | . . . Escape Stasis . | . . . Rewire . | . . . Trap . | . . . Miscellaneous . | . . . Route ------- -11/Scrapyard -10/Materials (discovered 2 exits: [*Mat] / *Min) -10/Mines (discovered 1 exit: [*Mat]) History --------- Turn | Location | Event 1 | -11/Scrapyard | Discovered new exit (range 2) 5 | -11/Scrapyard | Entered Materials 127 | -10/Materials | Identified exit to Mines 234 | -10/Materials | Discovered new exit (range 14) 308 | -10/Materials | Build established: Mutant 341 | -10/Materials | Entered Mines 342 | -10/Mines | Met a Derelict testing a Signal Generator 418 | -10/Mines | A weapon hastily lodged in a ceiling crevice suddenly fell to the ground 448 | -10/Mines | Assembled infested the area 466 | -10/Mines | Learned 2 Materials zone layouts 682 | -10/Mines | Core integrity fell below 50% 684 | -10/Mines | Core integrity fell below 20% 692 | -10/Mines | Discovered new exit (range 14) 702 | -10/Mines | Destroyed by D-53 Grenadier with Mini Grenade Launcher Last Messages --------------- R-06 Scavenger collects Tractor Beam. K-01 Serf collects debris. Acquired 17 matter. HN-AYG(g) destroyed. Ion Engine destroyed. Aluminum Leg destroyed. Particle Gun destroyed. The unstable cave ceiling collapses. K-01 Serf collects debris. The unstable cave ceiling collapses. K-01 Serf collects debris. M-13 Machinist destroyed. The unstable cave ceiling collapses. K-01 Serf collects debris. Wheel destroyed. R-06 Scavenger destroyed. EXIT=FOUND K-01 Serf collects debris. Acquired 10 matter. K-01 Serf collects debris. Map ----- +----------------------------------------------------+ | ?????????????????????????## ###??????????????? | | ????????????????????????? ##????????????? | | ?????????????????????????? ##???????????? | | ??????????????????????????# ???????????? | | ?????????????????????????##%! =!#???????????? | | ?????????????????????????# |%*#???????????? | | ?????????????????????????# ##??????????? | | ?????????????????????????# # ##?????????? | | ??????????????????????????# #?????????? | | ??????????????????????????# #?????????? | | ??????????????????????????# #?????????? | | ??????????????????????????# #?????????? | | ??????????????????????????# #?????????? | | ????????????????????????#### #?????????? | | ???????????????????????? # #?????????? | | ????????????????????????# # =% ##?????????? | | ????????????????????????# ## %! #??????????? | | ????????????????????????# ## ##?????????? | | ?????????????????#?????## ### #?????????? | | ?????????????????# ##### ! ### !! ##??????### | | ??????????????# ## r ##d =%= #####?? # | | ??????????????# d = * #??# # | | ?????????????????????# r% !% #??# # | | ?????????????????????# % ###### #??# # | | ????????????????????## #### ##????# #??# # | | ????????????????????# @% ##??####?????# #??# # | | ??????????????????# % #??????????### ##?# # | | ??????????????? < #?????????## ### | | ???????????? u ##?????##### ## # | | ????????? ###########?????## """" # | | ????????? ??????????????????# """" # | | ?????????#????????????????????# """" ### | | ?????????????????????????????## ## | | ?????????????????????????????# ## | | ?????????????????????????????# ##### | | ?????????????????????????????## ###???## | | ??????????????????????????????#####??????## | | ????????????????????????????????????????## | | ???????????????????????????????????###### | | ??????????????????????????????????## | | ??????????????????????????????????# #### | | ??????????????????????????????????# ##??# | | ??????????????????????????????????# ##??## | | ??????????????????????????????????## ####??## | | ???????????????????????????????????###??????# | | ????????????????????????????????????????????# | | ????????????????????????????????????????????# | | ????????????????????????????????????????????# | | ????????????????????????????????????????????# | | ????????????????????????????????????????????# | +----------------------------------------------------+ Best States ------------- Heat Dissipation 25 Energy Generation 10 Energy Capacity 250 Matter Stores 300 Matter Capacity 300 Sight Range 16 Terrain Scan Density 10 Evasion (%) 55 Item Schematics ----------------- None Robot Schematics ------------------ None Fabricated ------------ Nothing Alien Tech Used ----------------- None Achievements -------------- None Challenges ------------ None Game ------ Seed AuthchipPlasmaGenerator Manual? 0 Play Time 00:07:04 Cumulative 63.5 hours Start 2024.04.16 @ 20:25:35 End 2024.04.16 @ 20:32:21 Sessions 1 Manual Loads 0 Difficulty Rogue Special Mode None Game No. 141 Rogue 139 Adventurer 2 Explorer 0 Win Type - Total 0 Types 0/0/0/0/0/0/0/0/0 Lore% 40 Gallery% 45 Achievement% 34 Wizard Run 0 Options --------- Layout 0 ASCII 0 Keyboard 1 Movement Numpad Keybinds 1 Fullscreen 2 Font 18/SmallcapsGlow Map View 76x50 Zoom Use 0% Tactical HUD 0 Map Filters NONE Filters NONE Steam 1 RUN: d560f014-ea99-4ff0-aeb4-5ee98992d319